Cogmind - Beta 14 @@@ ROGUE MODE // 2025.02.28 @ 17:00:41 Player: toydarian Result: Destroyed by G-34 Mercenary with Small Laser Performance ------------- Evolutions (0) 0 Regions Visited (1) 200 Robots Destroyed (26) 130 Value Destroyed (550) 550 Prototype IDs (0) 0 Alien Tech Used (0) 0 Bonus (0) 0 TOTAL SCORE: 880 Bonus ------- None Cogmind --------- Core Integrity 0/250 Matter 284/300 Energy 98/100 System Corruption 0% Temperature Cool (6) Movement Treading (320) Ox2 Location -10/Materials Parts ------- > --- POWER (1) -------- (None) > --- PROPULSION (2) --- Light Treads Light Treads > --- UTILITY (2) ------ Huge Storage Unit > --- WEAPON (2) ------- Light Assault Rifle Light Assault Rifle > --- INVENTORY (25) --- Light Treads Light Treads Light Treads Light Treads Light Treads Light Treads High-capacity Matter Pod (200) Subdweller Machine Gun Peak State ------------ > --- POWER ------------ Ion Engine > --- PROPULSION ------- Light Treads Light Treads > --- UTILITY ---------- Medium Storage Unit Seismic Detector > --- WEAPON ----------- Assault Rifle Light Assault Rifle > --- INVENTORY -------- Ion Engine Light Treads Light Treads Light Treads Wheel Wheel High-capacity Matter Pod Light Assault Rifle Light Assault Rifle Grenade Launcher [Rating: 8] Favorites ----------- Power Ion Engine Engine Ion Engine Propulsion Light Treads Treads Light Treads Wheel Wheel Utility Seismic Detector Device Seismic Detector Storage Huge Storage Unit Weapon Light Assault Rifle Ballistic Gun Light Assault Rifle Launcher Grenade Launcher Build | -11 -10 ------- Run | Yrd Mat Slots Evolved . | . . Power . | . . Propulsion . | . . Utility . | . . Weapon . | . . Parts Attached 21 | 8 13 Power 2 | 1 1 Engine 2 | 1 1 Core . | . . Reactor . | . . Propulsion 9 | 3 6 Treads 6 | . 6 Leg . | . . Wheel 3 | 3 . Hover . | . . Flight . | . . Utility 4 | 2 2 Device 1 | 1 . Storage 3 | 1 2 Processor . | . . Hackware . | . . Protection . | . . Artifact . | . . Weapon 6 | 2 4 Energy Gun . | . . Energy Cannon . | . . Ballistic Gun 5 | 2 3 Ballistic Cannon . | . . Launcher 1 | . 1 Special Weapon . | . . Impact Weapon . | . . Slashing Weapon . | . . Piercing Weapon . | . . Special Melee Weapon . | . . Unidentified Prototypes . | . . Parts Lost 8 | . 8 Power 2 | . 2 Propulsion 2 | . 2 Utility 1 | . 1 Weapon 3 | . 3 Highest Loss Streak 6 | . 6 To Critical Strikes 1 | . 1 Average Slot Usage (%) 99 | . 99 Engine 13 | . 13 Treads 24 | . 24 Wheel 3 | . 3 Device 13 | . 13 Storage 14 | . 14 Ballistic Gun 27 | . 27 Peak Build Rating 8 | 7 8 Average Rating 6 | 5 7 On Entrance 3 | . 7 Naked Turns . | . . Heaviest Build 90 | 14 90 Greatest Support 40 | 26 40 Greatest Overweight (x) 4 | . 4 Average Overweight (x) . | . . Largest Inventory Capacity 25 | 8 25 Average Capacity 16 | 7 17 Most Carried 12 | 8 12 Average Carried 7 | 5 7 Final Capacity 25 | 8 25 Final Carried 8 | 8 8 Class Distribution -------------------- 100% | Mutant Dominant Class ---------------- Mutant | -10/Materials Resources | -11 -10 ----------- Run | Yrd Mat Matter Collected 1051 | 428 623 Remotely . | . . Salvage Created 943 | 220 723 Parts 65 | 21 44 Haulers Intercepted 2 | . 2 Recyclers Shooed 1 | . 1 Parts Field Recycled . | . . Retrieved Matter . | . . Parts Self-Destructed . | . . Prevented . | . . Kills | -11 -10 ------- Run | Yrd Mat Combat Hostiles Destroyed 12 | . 12 Guns 10 | . 10 AOE 2 | . 2 Classes Destroyed 8 | 3 5 Worker 1 | 1 . Builder 1 | . 1 Tunneler 5 | 5 . Hauler 2 | . 2 Recycler 4 | 1 3 Watcher 1 | . 1 Grunt 9 | . 9 Subdweller 3 | . 3 Best Kill Streak 7 | 7 3 Combat Bots Only 2 | . 2 Max Kills in Single Turn 2 | 1 2 Gunslinging . | . . Exploded 1 | . 1 Melee . | . . Uniques/NPCs Destroyed . | . . Combat | -11 -10 -------- Run | Yrd Mat Hostile Shots Fired 116 | . 116 Missed 28 | . 28 Damage Taken 1358 | . 1358 Core 250 | . 250 Absorbed by Shields . | . . Core Remaining (%) 100 | 100 . Volleys Fired 96 | 13 83 Largest 2 | 2 2 Hottest 50 | 40 50 Shots Fired 192 | 26 166 Gun 187 | 26 161 Cannon . | . . Launcher 5 | . 5 Special . | . . Kinetic 187 | 26 161 Thermal . | . . Explosive 5 | . 5 Electromagnetic . | . . Robot Hit Streak 16 | 15 16 Robot Miss Streak 3 | 3 2 Penetration Max . | . . Secondary Targets 1 | . 1 Max Gunslinging Chain 1 | . 1 Shots Hit Robots 123 | 17 106 Core Hits 59 | 12 47 Critical Kills . | . . Critical Parts Destroyed 1 | . 1 Critical Strikes 1 | . 1 Destroy 1 | . 1 Melee Attacks . | . . Impact . | . . Slashing . | . . Piercing . | . . Sneak Attacks . | . . Combat Hostiles . | . . Follow-up Attacks . | . . Damage Inflicted 1689 | 201 1488 Guns 1325 | 201 1124 Cannons . | . . Explosions 364 | . 364 Melee . | . . Ramming . | . . Kinetic 1325 | 201 1124 Thermal . | . . Explosive 364 | . 364 Electromagnetic . | . . Impact . | . . Slashing . | . . Piercing . | . . Highest Corruption . | . . Average Corruption . | . . Corruption Purged . | . . Corruption Blocked . | . . Overload Shots . | . . Overflow Damage . | . . Projectiles . | . . Explosions . | . . Melee . | . . Knockbacks . | . . Impact . | . . Kinetic . | . . Secondary . | . . Self-Inflicted Damage . | . . Shots . | . . Rammed . | . . Targets Rammed . | . . Kicked . | . . Crushed . | . . Highest Temperature 37 | . 37 Average Temperature 10 | . 10 Received Heat Transfer 531 | . 531 Siege Activations . | . . Robots Corrupted . | . . Combat Hostiles . | . . Parts Fried . | . . Impact Corruptions . | . . Robots Melted . | . . Combat Hostiles . | . . Parts Melted . | . . Heat Transferred . | . . Parts Sabotaged . | . . Parts Stolen . | . . Parts Stripped . | . . Power Chain Reactions . | . . Alert | -11 -10 ------- Run | Yrd Mat Peak Influence 193 | 35 193 Initial 22 | . 22 Average 40 | 16 42 Maximum Alert Level . | . . Low Security (%) 100 | 100 100 Level 1 . | . . Level 2 . | . . Level 3 . | . . Level 4 . | . . Level 5 . | . . High Security . | . . Max Security . | . . Squads Dispatched 1 | . 1 Investigation 1 | . 1 Extermination . | . . Reinforcement . | . . Assault . | . . Garrison . | . . Intercept . | . . Searches Triggered . | . . Construction Impeded . | . . Haulers Reinforced . | . . Active Scanning Responses . | . . Cargo Convoy Interrupts . | . . Stealth | -11 -10 --------- Run | Yrd Mat Distress Signals 1 | . 1 Communications Jammed . | . . Distress Signals . | . . Times Spotted 21 | . 21 Peak Tracking Total 5 | . 5 Tactical Retreats . | . . Traps | -11 -10 ------- Run | Yrd Mat Traps Triggered 1 | . 1 Indirectly . | . . Trap Hack Attempts . | . . Triggered . | . . Disarmed . | . . Reprogrammed . | . . Reused . | . . Traps Extracted . | . . Installed . | . . Triggered . | . . Machines | -11 -10 ---------- Run | Yrd Mat Machines Disabled . | . . Max in Single Turn . | . . Machines Repaired . | . . Machines Dismantled . | . . Machines Sabotaged . | . . Overloaded Fab Kills . | . . Hacking | -11 -10 --------- Run | Yrd Mat Machines Accessed 6 | . 6 Terminals 4 | . 4 Fabricators . | . . Repair Stations . | . . Recycling Units 2 | . 2 Scanalyzers . | . . Garrison Access . | . . Total Hacks 16 | . 16 Successful 5 | . 5 Failed 11 | . 11 Catastrophic 2 | . 2 Database Lockouts . | . . Manual 16 | . 16 Terminals 11 | . 11 Fabricators . | . . Repair Stations . | . . Recycling Units 5 | . 5 Scanalyzers . | . . Garrison Access . | . . Terminal Hacks . | . . Fabricator Hacks . | . . Repair Station Hacks . | . . Recycling Unit Hacks . | . . Scanalyzer . | . . Garrison Access Hacks . | . . Unauthorized Hacks 5 | . 5 Terminals 2 | . 2 Botnet 2 | . 2 Fabricators . | . . Repair Stations . | . . Recycling Units 3 | . 3 Reject 1 | . 1 Mask 2 | . 2 Scanalyzers . | . . Garrison Access . | . . Data Cores Recovered . | . . Used . | . . Hacking Detections 5 | . 5 Full Trace Events 1 | . 1 Feedback Events . | . . Feedback Blocked . | . . Robot Schematics Acquired . | . . Robots Built . | . . Authchips . | . . Time . | . . Total Robot Build Rating . | . . Part Schematics Acquired . | . . Parts Built . | . . Authchips . | . . Time . | . . Total Part Build Rating . | . . Parts Repaired . | . . Time . | . . Parts Recycled . | . . Recycled Matter . | . . Retrieved Matter . | . . Retrieved Components . | . . Parts Scanalyzed . | . . Part Schematics Acquired . | . . Parts Damaged . | . . Bothacking | -11 -10 ------------ Run | Yrd Mat Used RIF Installer . | . . Robots Hacked . | . . Non-combat . | . . Combat . | . . Robot Hacks Applied . | . . Relay Couplers Released . | . . Fabnet Peak Effective % . | . . Robots Rewired . | . . Allies Hacked . | . . Hacks Repelled . | . . Allies | -11 -10 -------- Run | Yrd Mat Total Allies . | . . Largest Group . | . . Highest-Rated Group . | . . Highest-Rated Ally . | . . Total Orders . | . . Ally Attacks . | . . Total Damage . | . . Kills . | . . Allies Corrupted . | . . Allies Melted . | . . Intel | -11 -10 ------- Run | Yrd Mat Robot Analysis Total . | . . Derelict Logs Recovered . | . . Drone Launches . | . . Drone Recoveries . | . . Exploration | -11 -10 ------------- Run | Yrd Mat Turns Passed 1468 | 129 1339 Spaces Moved 630 | 86 544 Core 4 | 3 1 Treads 398 | . 398 Legs . | . . Wheels 228 | 83 145 Hover . | . . Flight . | . . Fastest Speed 50 | 50 80 Average Speed 178 | 82 193 Slowest Speed 320 | 90 320 Overloaded Moves . | . . Propulsion Burnouts . | . . Robots Hopped . | . . Cave-ins Triggered . | . . Exploration Rate (%) 32 | 4 60 Regions Visited 1 Branch Regions . Pre-discovered Areas . | . . Known Exits Taken . | . . Unknown Exits Taken 1 | 1 . Scrap Searched . | . . Spaces Dug . | . . Terrain Destroyed 28 | . 28 Melee . | . . Projectile . | . . AOE 28 | . 28 Terrain Rammed . | . . Walls Destroyed . | . . Machines Disabled . | . . Actions | -11 -10 --------- Run | Yrd Mat Total 810 | 121 689 Wait 25 | . 25 Move 629 | 85 544 Hop . | . . Pick Up 23 | 11 12 Fast Attach 9 | 7 2 Attach 6 | . 6 Detach . | . . Swap 6 | 1 5 Drop 16 | 4 12 Fire 96 | 13 83 Melee . | . . Ram . | . . Kick . | . . Crush . | . . Escape Stasis . | . . Rewire . | . . Trap . | . . Miscellaneous . | . . Route ------- -11/Scrapyard -10/Materials (discovered 2 exits: [*Mat] / [*Min]) History --------- Turn | Location | Event 25 | -11/Scrapyard | Discovered new exit (range 16) 130 | -11/Scrapyard | Entered Materials 306 | -10/Materials | Build established: Mutant 548 | -10/Materials | Discovered new exit (range 3) 689 | -10/Materials | Discovered new exit (range 15) 730 | -10/Materials | Derelicts attacked the area 832 | -10/Materials | Core integrity fell below 50% 898 | -10/Materials | Lost 6 parts (1p2n3w) 1438 | -10/Materials | Core integrity fell below 20% 1469 | -10/Materials | Destroyed by G-34 Mercenary with Small Laser Last Messages --------------- 00974_ Acquired 7 matter. 00980_ Acquired 60 matter. 00983_ Acquired 5 matter. 00987_ Acquired 82 matter. 01057_ Acquired Lgt. Treads. 01075_ Dropped Lgt. Treads. 01076_ Dropped Wheel. 01096_ Acquired 20 matter. 01213_ K-01 Serf cleans the Neutrino Reactor. 01355_ Connecting with Terminal... 01381_ ALERT: Suspicious activity at Terminal M005. Dispatching Investigation squad. 01413_ W-16 Scout sends out distress signal. 01441_ Ion Engine destroyed. 01447_ Seismic Detector destroyed. 01456_ G-34 Mercenary destroyed. 01456_ Switching to secondary target: G-34 Mercenary. 01461_ G-34 Mercenary destroyed. 01464_ K-01 Serf collects debris. 01467_ K-01 Serf cleans the Terminal. Map ----- +----------------------------------------------------+ | ?????????????????????????????????????????????????? | | ?????????????????????????????????????????????????? | | ?????????????????????????????????????????????????? | | ?????????????????????????????????????????????????? | | ?????????????????????????????????????????????????? | | ?????????????????????????????????????????????????? | | ?????????????????????????????????????????????????? | | ?????????????????????????????????????????????????? | | ?????????????????????????????????????????????????? | | ?????????????????????????????????????????????????? | | ?????????????????????????????????????????????????? | | ?????????????????????????????????????????????????? | | ???????????????????????######+#######????????????? | | ???????????????????????# #????????????? | | ???????????????????????# #????????????? | | ???????????????????????# ?????????????? | | ????????????????????????? ^ ???????????????? | | ??????????????????????????? ?????????????????? | | ?????????????# ##############/########???????????? | | ????????????## + #???????????? | | ????????? ## "" #???????????? | | ????????? ## T" #???????????? | | ???????????????#########g### ## "" #???????????? | | ?????????????###########/### ## #??? #??????? | | ?????????????# = # ##+#### #??????? | | ???# ????????# %@# +??????? | | ???# ??????# !*g% T #??????? | | ???# ??????# =#[k #??????? | | ???# ??????# # ! ####### #??????? | | ???# ??????############### ########? #??????? | | ???# ???????### ########## # #?? #??????? | | ???# ?????### #""""" "## + """ #???#??????? | | ???# ######## ## | | ## # """ #??????????? | | ???# ##### ## # """ #??????????? | | ???# =[ &%= = # #??????????? | | ???# ""!* = ! *< # [|!#??????????? | | ???# "Y== * =|& # [|!#??????????? | | #### ""!!% ##### % ###### [|!#??????????? | | =!! # #########????# #??????????? | | [!= ### #?????????# """ #??????????? | | """ #?# ""#?????????# """ #??????????? | | #### ! """ ### Y"#?????????? """ #??????????? | | ???# = """ + ""########### ?? #??????????? | | ???# # # ###???##??????????? | | ???# # # [[! #?????????????????? | | ???# ! # # [[ #?????????????????? | | ???# ! ########## # [! #?????????????????? | | ???# #????????# #* #?????????????????? | | #### !!#????????###### #?????????????????? | | =%= = #?????????????# #?????????????????? | +----------------------------------------------------+ Best States ------------- Heat Dissipation 25 Energy Generation 10 Energy Capacity 250 Matter Stores 300 Matter Capacity 300 Sight Range 16 Terrain Scan Density 10 Evasion (%) 44 Recoil Reduction 2 Item Schematics ----------------- None Robot Schematics ------------------ None Fabricated ------------ Nothing Alien Tech Used ----------------- None Achievements -------------- None Challenges ------------ None Game ------ Seed ExoskeletonMediumFrame Manual? 0 Play Time 00:11:56 Cumulative 61.0 hours Start 2025.02.28 @ 16:50:46 End 2025.02.28 @ 17:00:41 Sessions 1 Manual Loads 0 Difficulty Rogue Special Mode None Game No. 86 Rogue 79 Adventurer 0 Explorer 7 Win Type - Total 2 Types 2/0/0/0/0/0/0/0/0 Lore% 19 Gallery% 32 Achievement% 32 Wizard Run 0 Options --------- Layout 0 ASCII 0 Keyboard 0 Movement Mouse Keybinds 0 Fullscreen 1 Font 24/Smallcaps Map View 76x50 Zoom Use 0% Tactical HUD 1 Map Filters NONE Filters NONE Steam 1 RUN: ba077d67-7ada-42ef-ad55-d31a7d621e56